fUST/lending_fUST_20250918
["ID","MTS","AMOUNT","RATE_DAILY","PERIOD"]
[386044474,1758195624618,500.0,0.00022763,2]
[386044475,1758195625336,198.57680274,0.00022763,2]
[386044476,1758195629178,-480.0,0.00022762,3]
[386044477,1758195629209,-500.0,0.00022762,2]
[386044478,1758195629239,-500.0,0.00022762,2]
[386044479,1758195629268,-500.0,0.00022762,2]
[386044480,1758195629298,-500.0,0.00022762,2]
[386044481,1758195629327,-500.0,0.00022762,2]
[386044482,1758195629356,-500.0,0.00022762,2]
[386044483,1758195629388,-500.0,0.00022762,2]
[386044484,1758195629419,-500.0,0.00022762,2]
[386044485,1758195629449,-500.0,0.00022762,2]
[386044486,1758195630729,150.0,0.00020636,2]
[386044487,1758195631151,150.0,0.00021618,2]
[386044488,1758195639232,-480.0,0.00022762,2]
[386044489,1758195639261,-480.0,0.00022762,3]
[386044490,1758195639290,-488.86508713,0.00022762,2]
[386044491,1758195639318,-348.89661911,0.00022762,3]
[386044492,1758195639347,-480.0,0.00022762,3]
[386044493,1758195639374,-480.0,0.00022762,3]
[386044494,1758195639411,-500.0,0.00022762,2]
[386044495,1758195639448,-500.0,0.00022762,2]
[386044496,1758195639484,-500.0,0.00022762,2]
[386044497,1758195639519,-472.78230406,0.00022762,2]
[386044498,1758195639554,-38.9219794,0.00022762,2]
[386044499,1758195639820,-461.0780206,0.00022762,2]
[386044500,1758195639853,-151.0,0.00022763,2]
[386044501,1758195639882,-151.0,0.00022763,2]
[386044502,1758195639913,-151.0,0.00022763,2]
[386044503,1758195639948,-151.0,0.00022763,2]
[386044504,1758195639981,-151.0,0.00022763,2]
[386044505,1758195640416,-483.5458699,0.00022762,3]
[386044506,1758195649269,-480.0,0.00022762,3]
[386044507,1758195649299,-500.0,0.00022762,2]
[386044508,1758195649330,-500.0,0.00022762,2]
[386044509,1758195649360,-500.0,0.00022762,2]
[386044510,1758195649390,-500.0,0.00022762,2]
[386044511,1758195649420,-500.0,0.00022762,2]
[386044512,1758195649450,-361.90613977,0.00022762,2]
[386044513,1758195649482,-158.87696984,0.00022763,2]
[386044514,1758195655312,209.59712045,0.000199,2]
[386044515,1758195659322,-209.5971204,0.00022487,2]
[386044516,1758195659350,-480.0,0.00022762,3]
[386044517,1758195659377,-480.0,0.00022762,3]
[386044518,1758195659406,-484.4405756,0.00022762,3]
[386044519,1758195659433,-480.0,0.00022762,3]
[386044520,1758195659463,-480.0,0.00022762,3]
[386044521,1758195659495,-480.0,0.00022762,3]
[386044522,1758195669427,-480.0,0.00022762,3]
[386044523,1758195669456,-480.0,0.00022762,3]
[386044524,1758195669487,-300.0,0.00022762,2]
[386044525,1758195669515,-480.0,0.00022762,3]
[386044526,1758195669543,-480.0,0.00022762,3]
[386044527,1758195669574,-480.0,0.00022762,3]
[386044528,1758195669603,-480.0,0.00022762,3]
[386044529,1758195669630,-481.08429304,0.00022762,3]
[386044530,1758195679309,-480.0,0.00022762,3]
[386044531,1758195679337,-480.0,0.00022762,3]
[386044532,1758195679365,-480.0,0.00022762,3]
[386044533,1758195679393,-480.0,0.00022762,3]
[386044534,1758195679420,-480.0,0.00022762,3]
[386044535,1758195679447,-480.0,0.00022762,3]
[386044536,1758195679788,-3586.23047039,0.00022763,2]
[386044537,1758195679825,-10000.01,0.00022763,2]
[386044538,1758195679838,-10000.01,0.00022763,2]
[386044539,1758195689320,-530.5891748,0.00022762,3]
[386044540,1758195689350,-480.0,0.00022762,3]
[386044541,1758195689379,-480.0,0.00022762,3]
[386044542,1758195689409,-480.0,0.00022762,3]
[386044543,1758195698243,480.0,0.00022762,3]
[386044544,1758195698842,480.0,0.00022762,3]
[386044545,1758195700429,480.0,0.00022762,3]
[386044546,1758195700572,480.0,0.00022762,3]
[386044547,1758195701670,480.0,0.00022762,3]
[386044548,1758195702700,481.71695384,0.00022762,3]
[386044549,1758195706449,480.0,0.00022762,3]
[386044550,1758195708024,2472.9535483,0.00022763,2]
[386044551,1758195716317,224.16114826,0.00022762,3]
[386044552,1758195716340,255.83885174,0.00022762,3]
[386044553,1758195721438,480.0,0.00022762,3]
[386044554,1758195722290,480.0,0.00022762,3]
[386044555,1758195722406,300.0,0.00022762,2]
[386044556,1758195722888,481.08361683,0.00022762,3]
[386044557,1758195726540,480.0,0.00022762,3]
[386044558,1758195728908,480.0,0.00022762,3]
[386044559,1758195732755,515.6,0.00022762,3]
[386044560,1758195732927,480.0,0.00022762,3]
[386044561,1758195738308,1200.0,0.00022762,2]
[386044562,1758195745967,500.0,0.00022762,3]
[386044563,1758195746299,500.0,0.00022762,3]
[386044564,1758195746545,500.0,0.00022762,3]
[386044565,1758195746829,305.61440412,0.00022762,3]
[386044566,1758195748332,553.5,0.00022762,3]
[386044567,1758195749179,500.0,0.00022762,3]
[386044568,1758195749229,484.61377895,0.00022762,3]
[386044569,1758195749420,500.0,0.00022762,3]
[386044570,1758195749657,500.0,0.00022762,3]
[386044571,1758195749771,-4444.93769796,0.00022763,2]
[386044572,1758195749795,-10000.01,0.00022763,2]
[386044573,1758195749891,500.0,0.00022762,3]
[386044574,1758195749968,-9500.01,0.00022763,2]
[386044575,1758195750136,3.75934836,0.00022762,3]
[386044576,1758195750161,496.24065164,0.00022762,3]
[386044577,1758195750388,500.0,0.00022762,3]
[386044578,1758195750630,500.0,0.00022762,3]
[386044579,1758195750874,500.0,0.00022762,3]
[386044580,1758195751113,500.0,0.00022762,3]
[386044581,1758195751376,630.81901567,0.00022762,3]
[386044582,1758195761582,-480.0,0.00022762,3]
[386044583,1758195761615,-480.0,0.00022762,3]
[386044584,1758195761644,-480.0,0.00022762,3]
[386044585,1758195761674,-480.0,0.00022762,3]
[386044586,1758195761703,-482.17687101,0.00022762,3]
[386044587,1758195761733,-480.0,0.00022762,3]
[386044588,1758195761761,-480.0,0.00022762,3]
[386044589,1758195763130,480.0,0.00022762,3]
[386044590,1758195763258,480.0,0.00022762,3]
[386044591,1758195765606,480.0,0.00022762,3]
[386044592,1758195767081,480.0,0.00022762,3]
[386044593,1758195771245,480.0,0.00022762,3]
[386044594,1758195773126,480.0,0.00022762,3]
[386044595,1758195779265,395.65625798,0.00022762,3]
[386044596,1758195779286,84.34374202,0.00022762,3]
[386044597,1758195781609,462.55660117,0.00022762,3]
[386044598,1758195781977,480.0,0.00022762,3]
[386044599,1758195783158,300.0,0.00022762,2]
[386044600,1758195783862,500.0,0.00022762,3]
[386044601,1758195784031,480.0,0.00022762,3]
[386044602,1758195785599,480.0,0.00022762,3]
[386044603,1758195785839,480.0,0.00022762,3]
[386044604,1758195834531,204.25661418,0.000199,2]
[386044605,1758195864407,-204.25661415,0.00022315,2]
[386044606,1758195864431,-79.47657585,0.00022637,2]
[386044607,1758195868155,-159.60850706,0.00022637,2]
[386044608,1758195870855,-217.43191248,0.00022637,2]
[386044609,1758195911746,-3660.34826135,0.00022637,2]
[386044615,1758195931799,-2679.3134773,0.00022637,2]
[386044616,1758195931830,-1042.53912528,0.000227,2]
[386044617,1758195931865,-1042.53912526,0.00022718,2]
[386044618,1758195953468,150.0,0.00020698,2]
[386044619,1758195988486,1601.6077762,0.00021932,2]
[386044620,1758196013622,204.25661415,0.000199,2]
[386044622,1758196089138,8044.14560965,0.00021748,2]
[386044623,1758196089161,10000.01,0.00021748,2]
[386044624,1758196089182,10000.01,0.00021748,2]
[386044625,1758196089204,10000.01,0.00021748,2]
[386044626,1758196089225,1955.82439035,0.00021748,2]
[386044627,1758196093027,8044.18560965,0.0002,7]
[386044628,1758196093049,10000.01,0.0002,7]
[386044629,1758196093071,10000.01,0.0002,7]
[386044630,1758196093094,10000.01,0.0002,7]
[386044631,1758196093115,10000.01,0.0002,7]
[386044632,1758196093136,10000.01,0.0002,7]
[386044633,1758196093163,3064.62639525,0.0002,7]
[386044634,1758196093188,5000.0,0.0002,7]
[386044635,1758196093214,5000.0,0.0002,7]
[386044636,1758196093240,5000.0,0.0002,7]
[386044637,1758196093266,15000.0,0.0002,7]
[386044638,1758196093292,55483.1379951,0.0002,7]
[386044640,1758196148398,150.0,0.000206,2]
[386044641,1758196148854,150.0,0.00021581,2]
[386044642,1758196167497,-172.80948068,0.00022,2]
[386044643,1758196169468,2039.25333,0.00021733,2]
[386044644,1758196169658,-6.22051932,0.00022,2]
[386044645,1758196176298,7660.75667,0.0002174,2]
[386044646,1758196176321,1339.0969262,0.0002174,2]
[386044647,1758196193132,212.03785355,0.000199,2]
[386044648,1758196193805,-170.97183283,0.00022487,2]
[386044649,1758196218102,150.0,0.00020558,2]
[386044650,1758196218547,150.0,0.00021537,2]
[386044651,1758196228704,-202.92700015,0.00022004,2]
[386044652,1758196230721,1000.0,0.00021862,2]
[386044653,1758196231633,-152.85,0.00022004,2]
[386044672,1758196232491,-2756.38387111,0.00022004,2]
[386044674,1758196232544,-948.29839736,0.00022004,2]
[386044675,1758196232598,-3131.10270635,0.00022004,2]
[386044676,1758196232607,-151.0,0.00022104,2]
[386044677,1758196232617,-41.06602071,0.00022487,2]
[386044678,1758196232627,-150.0,0.00022562,2]
[386044679,1758196232636,-217.43191248,0.00022662,2]
[386044680,1758196232645,-2180.05740868,0.00022662,2]
[386044681,1758196232654,-500.0,0.00022749,2]
[386044682,1758196232663,-300.86106436,0.00022749,2]
[386044683,1758196232672,-1671.2429957,0.00022753,2]
[386044684,1758196232682,-1200.0,0.00022758,2]
[386044686,1758196232691,-300.0,0.00022759,2]
[386044688,1758196232700,-300.0,0.00022759,2]
[386044690,1758196232709,-300.0,0.00022759,2]
[386044692,1758196232718,-300.0,0.00022759,2]
[386044694,1758196232727,-500.0,0.0002276,2]
[386044696,1758196232736,-500.0,0.0002276,2]
[386044698,1758196232746,-500.0,0.0002276,2]
[386044700,1758196232755,-162.52287456,0.0002276,2]
[386044701,1758196232765,-500.0,0.0002276,2]
[386044702,1758196232774,-500.0,0.0002276,2]
[386044703,1758196232783,-255.04745333,0.0002276,2]
[386044704,1758196232793,-389.03105361,0.0002276,2]
[386044705,1758196232802,-500.0,0.0002276,2]
[386044706,1758196232812,-500.0,0.0002276,2]
[386044707,1758196232821,-222.13992225,0.0002276,2]
[386044708,1758196232831,-500.0,0.0002276,2]
[386044709,1758196232840,-500.0,0.0002276,2]
[386044710,1758196232849,-577.36807508,0.0002276,2]
[386044711,1758196232858,-500.0,0.0002276,2]
[386044712,1758196232867,-500.0,0.0002276,2]
[386044713,1758196232877,-500.0,0.0002276,2]
[386044714,1758196232886,-500.0,0.0002276,2]
[386044715,1758196232895,-190.74878405,0.0002276,2]
[386044716,1758196232905,-500.0,0.0002276,2]
[386044717,1758196232914,-500.0,0.0002276,2]
[386044718,1758196232923,-500.0,0.0002276,2]
[386044719,1758196232932,-500.0,0.0002276,2]
[386044720,1758196232941,-500.0,0.0002276,2]
[386044721,1758196232951,-480.0,0.0002276,3]
[386044722,1758196232960,-516.34,0.0002276,3]
[386044723,1758196232969,-480.0,0.0002276,2]
[386044724,1758196232979,-480.0,0.0002276,3]
[386044725,1758196232988,-50000.0,0.00022761,2]
[386044726,1758196233001,-232.24464137,0.00022761,2]
[386044727,1758196233010,-162.57124895,0.00022761,2]
[386044728,1758196233019,-500.0,0.00022762,2]
[386044729,1758196233028,-480.0,0.00022762,3]
[386044730,1758196233038,-480.0,0.00022762,3]
[386044731,1758196233048,-481.72642853,0.00022762,3]
[386044732,1758196233058,-480.0,0.00022762,3]
[386044733,1758196233068,-492.88536601,0.00022762,3]
[386044734,1758196233080,-482.0518681,0.00022762,3]
[386044735,1758196233090,-480.0,0.00022762,3]
[386044736,1758196233099,-480.0,0.00022762,3]
[386044737,1758196233109,-487.23306598,0.00022762,3]
[386044738,1758196233118,-480.0,0.00022762,3]
[386044739,1758196233130,-480.0,0.00022762,3]
[386044740,1758196233140,-480.0,0.00022762,3]
[386044741,1758196233150,-480.0,0.00022762,3]
[386044742,1758196233160,-480.0,0.00022762,3]
[386044743,1758196233170,-480.0,0.00022762,3]
[386044744,1758196233180,-480.0,0.00022762,3]
[386044745,1758196233191,-480.0,0.00022762,3]
[386044746,1758196233201,-480.0,0.00022762,3]
[386044747,1758196233211,-480.0,0.00022762,3]
[386044748,1758196233220,-480.0,0.00022762,3]
[386044749,1758196233230,-480.0,0.00022762,3]
[386044750,1758196233243,-480.0,0.00022762,3]
[386044751,1758196233263,-480.0,0.00022762,3]
[386044752,1758196233282,-480.0,0.00022762,3]
[386044753,1758196233291,-323.59,0.00022762,3]
[386044754,1758196233301,-482.29672076,0.00022762,3]
[386044755,1758196233311,-480.0,0.00022762,3]
[386044756,1758196233323,-599.13,0.00022762,3]
[386044757,1758196233333,-481.78855305,0.00022762,3]
[386044758,1758196233342,-485.28201622,0.00022762,3]
[386044759,1758196233352,-480.0,0.00022762,3]
[386044760,1758196233362,-480.0,0.00022762,3]
[386044761,1758196233372,-480.0,0.00022762,3]
[386044762,1758196233382,-480.0,0.00022762,3]
[386044763,1758196233392,-484.64621898,0.00022762,3]
[386044764,1758196233402,-450.35955685,0.00022762,3]
[386044765,1758196233411,-482.52040208,0.00022762,3]
[386044766,1758196233421,-480.0,0.00022762,3]
[386044767,1758196233431,-484.89407507,0.00022762,3]
[386044768,1758196233440,-485.14174075,0.00022762,3]
[386044769,1758196233450,-480.0,0.00022762,3]
[386044770,1758196233459,-480.0,0.00022762,3]
[386044771,1758196233469,-513.81533869,0.00022762,3]
[386044772,1758196233479,-480.0,0.00022762,3]
[386044773,1758196233489,-480.0,0.00022762,3]
[386044774,1758196233498,-480.0,0.00022762,3]
[386044775,1758196233508,-480.0,0.00022762,3]
[386044776,1758196233517,-500.0,0.00022762,3]
[386044777,1758196233527,-480.0,0.00022762,3]
[386044778,1758196233536,-480.0,0.00022762,3]
[386044779,1758196233547,-480.0,0.00022762,3]
[386044780,1758196233557,-500.0,0.00022762,3]
[386044781,1758196233566,-500.0,0.00022762,3]
[386044782,1758196233576,-500.0,0.00022762,3]
[386044783,1758196233585,-500.0,0.00022762,3]
[386044784,1758196233594,-500.0,0.00022762,3]
[386044785,1758196233604,-500.0,0.00022762,3]
[386044786,1758196233614,-500.0,0.00022762,3]
[386044787,1758196233623,-500.0,0.00022762,3]
[386044788,1758196233633,-500.0,0.00022762,3]
[386044789,1758196233643,-589.28466738,0.00022762,3]
[386044790,1758196233652,-480.0,0.00022762,3]
[386044791,1758196233662,-480.0,0.00022762,3]
[386044792,1758196233672,-480.0,0.00022762,3]
[386044793,1758196233681,-480.0,0.00022762,3]
[386044794,1758196233691,-480.0,0.00022762,3]
[386044795,1758196233700,-480.0,0.00022762,3]
[386044796,1758196233710,-480.0,0.00022762,3]
[386044797,1758196233719,-480.0,0.00022762,3]
[386044798,1758196233728,-480.0,0.00022762,3]
[386044799,1758196233738,-480.0,0.00022762,3]
[386044800,1758196233748,-480.0,0.00022762,3]
[386044801,1758196233757,-480.0,0.00022762,3]
[386044802,1758196233767,-480.0,0.00022762,3]
[386044803,1758196233776,-482.52437463,0.00022762,3]
[386044804,1758196233787,-480.0,0.00022762,3]
[386044805,1758196233797,-480.0,0.00022762,3]
[386044806,1758196233807,-480.0,0.00022762,3]
[386044807,1758196233817,-484.61020092,0.00022762,3]
[386044808,1758196233827,-485.4834091,0.00022762,3]
[386044809,1758196233838,-480.0,0.00022762,3]
[386044810,1758196233848,-480.0,0.00022762,3]
[386044811,1758196233858,-351.71898198,0.00022762,3]
[386044812,1758196233867,-480.0,0.00022762,3]
[386044813,1758196233877,-480.0,0.00022762,3]
[386044814,1758196233887,-480.0,0.00022762,3]
[386044815,1758196233896,-480.0,0.00022762,3]
[386044816,1758196233906,-480.0,0.00022762,3]
[386044817,1758196233916,-480.0,0.00022762,3]
[386044818,1758196233926,-480.0,0.00022762,3]
[386044819,1758196233935,-480.0,0.00022762,3]
[386044820,1758196233944,-480.0,0.00022762,3]
[386044821,1758196233954,-480.0,0.00022762,3]
[386044822,1758196233965,-480.0,0.00022762,3]
[386044823,1758196233974,-480.0,0.00022762,3]
[386044824,1758196233984,-480.0,0.00022762,3]
[386044825,1758196234081,-480.0,0.00022762,3]
[386044826,1758196234092,-480.0,0.00022762,3]
[386044827,1758196234102,-480.0,0.00022762,3]
[386044828,1758196234111,-480.0,0.00022762,3]
[386044829,1758196234120,-480.0,0.00022762,3]
[386044830,1758196234130,-480.0,0.00022762,3]
[386044831,1758196234140,-480.0,0.00022762,3]
[386044832,1758196234150,-480.0,0.00022762,3]
[386044833,1758196234159,-480.0,0.00022762,3]
[386044834,1758196234169,-480.0,0.00022762,3]
[386044835,1758196234179,-480.0,0.00022762,3]
[386044836,1758196234188,-480.0,0.00022762,3]
[386044837,1758196234197,-480.0,0.00022762,3]
[386044838,1758196234206,-480.0,0.00022762,3]
[386044839,1758196234216,-480.0,0.00022762,3]
[386044840,1758196234225,-480.0,0.00022762,3]
[386044841,1758196234234,-480.0,0.00022762,3]
[386044842,1758196234243,-480.0,0.00022762,3]
[386044843,1758196234254,-480.0,0.00022762,3]
[386044844,1758196234263,-480.0,0.00022762,3]
[386044845,1758196234272,-480.0,0.00022762,3]
[386044846,1758196234281,-485.49821744,0.00022762,3]
[386044847,1758196234291,-480.0,0.00022762,3]
[386044848,1758196234299,-480.0,0.00022762,3]
[386044849,1758196234308,-421.76257407,0.00022762,3]
[386044850,1758196234318,-484.11434951,0.00022762,3]
[386044851,1758196234327,-480.0,0.00022762,3]
[386044852,1758196234336,-480.0,0.00022762,3]
[386044853,1758196234345,-480.0,0.00022762,3]
[386044854,1758196234354,-480.0,0.00022762,3]
[386044855,1758196234363,-480.0,0.00022762,3]
[386044856,1758196234372,-487.55370654,0.00022762,3]
[386044857,1758196234382,-480.0,0.00022762,3]
[386044858,1758196234391,-480.0,0.00022762,3]
[386044859,1758196234400,-480.0,0.00022762,3]
[386044860,1758196234409,-480.0,0.00022762,3]
[386044861,1758196234418,-480.0,0.00022762,3]
[386044862,1758196234428,-520.74673078,0.00022762,3]
[386044863,1758196234437,-916.53,0.00022762,3]
[386044864,1758196234446,-480.0,0.00022762,3]
[386044865,1758196234456,-480.0,0.00022762,3]
[386044866,1758196234465,-468.573118,0.00022762,3]
[386044867,1758196234475,-480.0,0.00022762,3]
[386044868,1758196234485,-480.0,0.00022762,3]
[386044869,1758196234494,-480.0,0.00022762,3]
[386044870,1758196234504,-480.0,0.00022762,3]
[386044871,1758196234513,-489.21022426,0.00022762,3]
[386044872,1758196234523,-480.0,0.00022762,3]
[386044873,1758196234532,-1884.03,0.00022762,3]
[386044874,1758196234542,-480.0,0.00022762,3]
[386044875,1758196234551,-480.0,0.00022762,3]
[386044876,1758196234561,-480.0,0.00022762,3]
[386044877,1758196234570,-480.0,0.00022762,3]
[386044878,1758196234580,-480.0,0.00022762,3]
[386044879,1758196234590,-480.66842908,0.00022762,3]
[386044880,1758196234599,-480.0,0.00022762,3]
[386044881,1758196234608,-480.0,0.00022762,3]
[386044882,1758196234618,-480.0,0.00022762,3]
[386044883,1758196234627,-480.85196515,0.00022762,3]
[386044884,1758196234636,-480.0,0.00022762,3]
[386044885,1758196234646,-483.20506484,0.00022762,3]
[386044886,1758196234655,-480.0,0.00022762,3]
[386044887,1758196234665,-480.0,0.00022762,3]
[386044888,1758196234674,-480.0,0.00022762,3]
[386044889,1758196234684,-480.0,0.00022762,3]
[386044890,1758196234693,-480.0,0.00022762,3]
[386044891,1758196234702,-480.0,0.00022762,3]
[386044892,1758196234711,-480.0,0.00022762,3]
[386044893,1758196234720,-368.59993085,0.00022762,3]
[386044894,1758196234729,-480.0,0.00022762,3]
[386044895,1758196234739,-481.86721806,0.00022762,3]
[386044896,1758196234748,-480.0,0.00022762,3]
[386044897,1758196234758,-480.0,0.00022762,3]
[386044898,1758196234767,-488.43355629,0.00022762,3]
[386044899,1758196234776,-480.0,0.00022762,3]
[386044900,1758196234786,-480.0,0.00022762,3]
[386044901,1758196234795,-480.0,0.00022762,3]
[386044902,1758196234804,-480.0,0.00022762,3]
[386044903,1758196234813,-484.73116387,0.00022762,3]
[386044904,1758196234822,-480.0,0.00022762,3]
[386044905,1758196234832,-480.0,0.00022762,3]
[386044906,1758196234842,-480.0,0.00022762,3]
[386044907,1758196234852,-486.65075893,0.00022762,3]
[386044908,1758196234862,-322.93717129,0.00022762,3]
[386044909,1758196234872,-480.0,0.00022762,3]
[386044910,1758196234882,-480.0,0.00022762,3]
[386044911,1758196234891,-480.0,0.00022762,3]
[386044912,1758196234901,-480.0,0.00022762,3]
[386044913,1758196234911,-481.68566798,0.00022762,3]
[386044914,1758196234919,-480.0,0.00022762,3]
[386044915,1758196234929,-480.0,0.00022762,3]
[386044916,1758196234939,-480.0,0.00022762,3]
[386044917,1758196234948,-480.0,0.00022762,3]
[386044918,1758196234958,-480.29324435,0.00022762,3]
[386044919,1758196234968,-480.0,0.00022762,3]
[386044920,1758196234977,-480.0,0.00022762,3]
[386044921,1758196234987,-480.0,0.00022762,3]
[386044922,1758196235000,-480.0,0.00022762,3]
[386044923,1758196235010,-480.0,0.00022762,3]
[386044924,1758196235019,-485.04568874,0.00022762,3]
[386044925,1758196235028,-480.0,0.00022762,3]
[386044926,1758196235039,-480.0,0.00022762,3]
[386044927,1758196235048,-504.22,0.00022762,3]
[386044928,1758196235061,-480.0,0.00022762,3]
[386044929,1758196235074,-480.0,0.00022762,3]
[386044930,1758196235087,-480.0,0.00022762,3]
[386044931,1758196235099,-480.0,0.00022762,3]
[386044932,1758196235111,-480.0,0.00022762,3]
[386044933,1758196235122,-480.0,0.00022762,3]
[386044934,1758196235132,-480.0,0.00022762,3]
[386044935,1758196235144,-480.0,0.00022762,3]
[386044936,1758196235156,-480.0,0.00022762,3]
[386044937,1758196235168,-480.0,0.00022762,3]
[386044938,1758196235180,-480.0,0.00022762,3]
[386044939,1758196235191,-480.0,0.00022762,3]
[386044940,1758196235204,-480.0,0.00022762,3]
[386044941,1758196235215,-480.0,0.00022762,3]
[386044942,1758196235227,-480.0,0.00022762,3]
[386044943,1758196235239,-480.0,0.00022762,3]
[386044944,1758196235252,-542.23235978,0.00022762,3]
[386044945,1758196235264,-480.0,0.00022762,3]
[386044946,1758196235275,-480.0,0.00022762,3]
[386044947,1758196235287,-480.0,0.00022762,3]
[386044948,1758196235299,-265.81003938,0.00022762,3]
[386044949,1758196235310,-480.0,0.00022762,3]
[386044950,1758196235321,-480.0,0.00022762,3]
[386044951,1758196235333,-480.0,0.00022762,3]
[386044952,1758196235345,-480.0,0.00022762,3]
[386044953,1758196235356,-480.0,0.00022762,3]
[386044954,1758196235368,-482.13975278,0.00022762,3]
[386044955,1758196235379,-480.0,0.00022762,3]
[386044956,1758196235389,-480.0,0.00022762,3]
[386044957,1758196235400,-480.0,0.00022762,3]
[386044958,1758196235411,-480.0,0.00022762,3]
[386044959,1758196235423,-481.91061076,0.00022762,3]
[386044960,1758196235433,-480.0,0.00022762,3]
[386044961,1758196235445,-480.0,0.00022762,3]
[386044962,1758196235456,-480.0,0.00022762,3]
[386044963,1758196235469,-480.0,0.00022762,3]
[386044964,1758196235480,-325.78768103,0.00022762,3]
[386044965,1758196235491,-492.39548655,0.00022762,3]
[386044966,1758196235503,-1009.14,0.00022762,3]
[386044967,1758196235517,-480.0,0.00022762,3]
[386044968,1758196235530,-480.0,0.00022762,3]
[386044969,1758196235542,-480.0,0.00022762,3]
[386044970,1758196235555,-480.0,0.00022762,3]
[386044971,1758196235565,-480.0,0.00022762,3]
[386044972,1758196235576,-486.74127188,0.00022762,3]
[386044973,1758196235586,-480.0,0.00022762,3]
[386044974,1758196235596,-480.0,0.00022762,3]
[386044975,1758196235606,-480.0,0.00022762,3]
[386044976,1758196235617,-480.0,0.00022762,3]
[386044977,1758196235628,-480.0,0.00022762,3]
[386044978,1758196235641,-480.0,0.00022762,3]
[386044979,1758196235652,-480.0,0.00022762,3]
[386044980,1758196235664,-482.36795285,0.00022762,2]
[386044981,1758196235674,-480.0,0.00022762,3]
[386044982,1758196235684,-193.45311918,0.00022762,3]
[386044983,1758196235695,-480.0,0.00022762,3]
[386044984,1758196235706,-960.0,0.00022762,2]
[386044985,1758196235718,-502.99,0.00022762,3]
[386044986,1758196235729,-480.0,0.00022762,3]
[386044987,1758196235739,-446.26169774,0.00022762,3]
[386044988,1758196235749,-321.07236974,0.00022762,3]
[386044989,1758196235760,-421.21,0.00022762,3]
[386044990,1758196235770,-480.0,0.00022762,3]
[386044991,1758196235781,-480.0,0.00022762,3]
[386044992,1758196235791,-480.0,0.00022762,3]
[386044993,1758196235802,-480.0,0.00022762,3]
[386044994,1758196235812,-480.0,0.00022762,3]
[386044995,1758196235823,-480.0,0.00022762,3]
[386044996,1758196235834,-480.0,0.00022762,3]
[386044997,1758196235844,-480.0,0.00022762,3]
[386044998,1758196235855,-502.18894731,0.00022762,3]
[386044999,1758196235868,-484.21599717,0.00022762,3]
[386045000,1758196235879,-330.14583224,0.00022762,3]
[386045001,1758196235976,-149.85416776,0.00022762,3]
[386045002,1758196235987,-480.0,0.00022762,3]
[386045003,1758196235999,-480.0,0.00022762,3]
[386045004,1758196236011,-480.0,0.00022762,3]
[386045005,1758196236022,-480.0,0.00022762,3]
[386045006,1758196236032,-480.0,0.00022762,3]
[386045007,1758196236044,-387.19471593,0.00022762,3]